Workbook

Sheet rbctconf
A1: Triplet | B1: Treatment | C1: Source of location data | D1: Region | E1: Type of breakdown | F1: Time period | G1: Incidence | H1: Baseline | I1: Hist3yr | J1: Hist1year | K1: yrs_since_initialcull | L1: hdyrsrisk | M1: A | N1: B | O1: C | P1: D | Q1: E | R1: F | S1: G | T1: H | U1: I | V1: J
A2: A | B2: Proactive | C2: VETNET | D2: Whole trial area | E2: Confirmed | F2: From follow up | G2: 52 | H2: 71 | I2: 38 | J2: 10 | K2: 5.6 | L2: 397.6 | M2: 1 | N2: 0 | O2: 0 | P2: 0 | Q2: 0 | R2: 0 | S2: 0 | T2: 0 | U2: 0 | V2: 0
A3: A | B3: Survey-only | C3: VETNET | D3: Whole trial area | E3: Confirmed | F3: From follow up | G3: 73 | H3: 86 | I3: 45 | J3: 13 | K3: 5.6 | L3: 481.6 | M3: 1 | N3: 0 | O3: 0 | P3: 0 | Q3: 0 | R3: 0 | S3: 0 | T3: 0 | U3: 0 | V3: 0
A4: B | B4: Proactive | C4: VETNET | D4: Whole trial area | E4: Confirmed | F4: From follow up | G4: 110 | H4: 152 | I4: 61 | J4: 21 | K4: 6.73 | L4: 1022.96 | M4: 0 | N4: 1 | O4: 0 | P4: 0 | Q4: 0 | R4: 0 | S4: 0 | T4: 0 | U4: 0 | V4: 0
A5: B | B5: Survey-only | C5: VETNET | D5: Whole trial area | E5: Confirmed | F5: From follow up | G5: 81 | H5: 132 | I5: 34 | J5: 8 | K5: 6.73 | L5: 888.36 | M5: 0 | N5: 1 | O5: 0 | P5: 0 | Q5: 0 | R5: 0 | S5: 0 | T5: 0 | U5: 0 | V5: 0
A6: C | B6: Proactive | C6: VETNET | D6: Whole trial area | E6: Confirmed | F6: From follow up | G6: 40 | H6: 105 | I6: 21 | J6: 12 | K6: 5.85 | L6: 614.25 | M6: 0 | N6: 0 | O6: 1 | P6: 0 | Q6: 0 | R6: 0 | S6: 0 | T6: 0 | U6: 0 | V6: 0
A7: C | B7: Survey-only | C7: VETNET | D7: Whole trial area | E7: Confirmed | F7: From follow up | G7: 120 | H7: 174 | I7: 41 | J7: 19 | K7: 5.85 | L7: 1017.9 | M7: 0 | N7: 0 | O7: 1 | P7: 0 | Q7: 0 | R7: 0 | S7: 0 | T7: 0 | U7: 0 | V7: 0
A8: D | B8: Proactive | C8: VETNET | D8: Whole trial area | E8: Confirmed | F8: From follow up | G8: 47 | H8: 97 | I8: 36 | J8: 13 | K8: 2.72 | L8: 263.84 | M8: 0 | N8: 0 | O8: 0 | P8: 1 | Q8: 0 | R8: 0 | S8: 0 | T8: 0 | U8: 0 | V8: 0
A9: D | B9: Survey-only | C9: VETNET | D9: Whole trial area | E9: Confirmed | F9: From follow up | G9: 51 | H9: 106 | I9: 40 | J9: 11 | K9: 2.72 | L9: 288.32 | M9: 0 | N9: 0 | O9: 0 | P9: 1 | Q9: 0 | R9: 0 | S9: 0 | T9: 0 | U9: 0 | V9: 0
A10: E | B10: Proactive | C10: VETNET | D10: Whole trial area | E10: Confirmed | F10: From follow up | G10: 68 | H10: 116 | I10: 33 | J10: 8 | K10: 5.28 | L10: 612.48 | M10: 0 | N10: 0 | O10: 0 | P10: 0 | Q10: 1 | R10: 0 | S10: 0 | T10: 0 | U10: 0 | V10: 0
A11: E | B11: Survey-only | C11: VETNET | D11: Whole trial area | E11: Confirmed | F11: From follow up | G11: 74 | H11: 97 | I11: 35 | J11: 16 | K11: 5.28 | L11: 512.16 | M11: 0 | N11: 0 | O11: 0 | P11: 0 | Q11: 1 | R11: 0 | S11: 0 | T11: 0 | U11: 0 | V11: 0
A12: F | B12: Proactive | C12: VETNET | D12: Whole trial area | E12: Confirmed | F12: From follow up | G12: 37 | H12: 138 | I12: 18 | J12: 5 | K12: 5.13 | L12: 707.94 | M12: 0 | N12: 0 | O12: 0 | P12: 0 | Q12: 0 | R12: 1 | S12: 0 | T12: 0 | U12: 0 | V12: 0
A13: F | B13: Survey-only | C13: VETNET | D13: Whole trial area | E13: Confirmed | F13: From follow up | G13: 91 | H13: 191 | I13: 55 | J13: 16 | K13: 5.13 | L13: 979.83 | M13: 0 | N13: 0 | O13: 0 | P13: 0 | Q13: 0 | R13: 1 | S13: 0 | T13: 0 | U13: 0 | V13: 0
A14: G | B14: Proactive | C14: VETNET | D14: Whole trial area | E14: Confirmed | F14: From follow up | G14: 99 | H14: 245 | I14: 41 | J14: 12 | K14: 4.82 | L14: 1180.9 | M14: 0 | N14: 0 | O14: 0 | P14: 0 | Q14: 0 | R14: 0 | S14: 1 | T14: 0 | U14: 0 | V14: 0
A15: G | B15: Survey-only | C15: VETNET | D15: Whole trial area | E15: Confirmed | F15: From follow up | G15: 48 | H15: 131 | I15: 34 | J15: 12 | K15: 4.82 | L15: 631.42 | M15: 0 | N15: 0 | O15: 0 | P15: 0 | Q15: 0 | R15: 0 | S15: 1 | T15: 0 | U15: 0 | V15: 0
A16: H | B16: Proactive | C16: VETNET | D16: Whole trial area | E16: Confirmed | F16: From follow up | G16: 44 | H16: 63 | I16: 26 | J16: 13 | K16: 4.72 | L16: 297.36 | M16: 0 | N16: 0 | O16: 0 | P16: 0 | Q16: 0 | R16: 0 | S16: 0 | T16: 1 | U16: 0 | V16: 0
A17: H | B17: Survey-only | C17: VETNET | D17: Whole trial area | E17: Confirmed | F17: From follow up | G17: 47 | H17: 130 | I17: 30 | J17: 10 | K17: 4.72 | L17: 613.6 | M17: 0 | N17: 0 | O17: 0 | P17: 0 | Q17: 0 | R17: 0 | S17: 0 | T17: 1 | U17: 0 | V17: 0
A18: I | B18: Proactive | C18: VETNET | D18: Whole trial area | E18: Confirmed | F18: From follow up | G18: 39 | H18: 100 | I18: 38 | J18: 16 | K18: 2.91 | L18: 291 | M18: 0 | N18: 0 | O18: 0 | P18: 0 | Q18: 0 | R18: 0 | S18: 0 | T18: 0 | U18: 1 | V18: 0
A19: I | B19: Survey-only | C19: VETNET | D19: Whole trial area | E19: Confirmed | F19: From follow up | G19: 46 | H19: 98 | I19: 28 | J19: 8 | K19: 2.91 | L19: 285.18 | M19: 0 | N19: 0 | O19: 0 | P19: 0 | Q19: 0 | R19: 0 | S19: 0 | T19: 0 | U19: 1 | V19: 0
A20: J | B20: Proactive | C20: VETNET | D20: Whole trial area | E20: Confirmed | F20: From follow up | G20: 54 | H20: 114 | I20: 38 | J20: 11 | K20: 2.88 | L20: 328.32 | M20: 0 | N20: 0 | O20: 0 | P20: 0 | Q20: 0 | R20: 0 | S20: 0 | T20: 0 | U20: 0 | V20: 1
A21: J | B21: Survey-only | C21: VETNET | D21: Whole trial area | E21: Confirmed | F21: From follow up | G21: 61 | H21: 123 | I21: 27 | J21: 16 | K21: 2.88 | L21: 354.24 | M21: 0 | N21: 0 | O21: 0 | P21: 0 | Q21: 0 | R21: 0 | S21: 0 | T21: 0 | U21: 0 | V21: 1

Sheet rbct_allbreakdowns
A1: Triplet | B1: Treatment | C1: Source of location data | D1: Region | E1: Type of breakdown | F1: Time period | G1: Incidence | H1: Baseline | I1: Hist3yr | J1: Hist1yr | K1: Years_since_initial_cull | L1: hrdyrsrisk | M1: A | N1: B | O1: C | P1: D | Q1: E | R1: F | S1: G | T1: H | U1: I | V1: J
A2: A | B2: Proactive | C2: VETNET | D2: Whole trial area | E2: All breakdowns | F2: From initial cull | G2: 52 | H2: 71 | I2: 38 | J2: 10 | K2: 5.6 | L2: =+K2*H2 -> 397.6 | M2: 1 | N2: 0 | O2: 0 | P2: 0 | Q2: 0 | R2: 0 | S2: 0 | T2: 0 | U2: 0 | V2: 0
A3: A | B3: Survey-only | C3: VETNET | D3: Whole trial area | E3: All breakdowns | F3: From initial cull | G3: 73 | H3: 86 | I3: 45 | J3: 13 | K3: 5.6 | L3: =+K3*H3 -> 481.6 | M3: 1 | N3: 0 | O3: 0 | P3: 0 | Q3: 0 | R3: 0 | S3: 0 | T3: 0 | U3: 0 | V3: 0
A4: B | B4: Proactive | C4: VETNET | D4: Whole trial area | E4: All breakdowns | F4: From initial cull | G4: 110 | H4: 152 | I4: 61 | J4: 21 | K4: 6.73 | L4: =+K4*H4 -> 1022.96 | M4: 0 | N4: 1 | O4: 0 | P4: 0 | Q4: 0 | R4: 0 | S4: 0 | T4: 0 | U4: 0 | V4: 0
A5: B | B5: Survey-only | C5: VETNET | D5: Whole trial area | E5: All breakdowns | F5: From initial cull | G5: 81 | H5: 132 | I5: 34 | J5: 8 | K5: 6.73 | L5: =+K5*H5 -> 888.36 | M5: 0 | N5: 1 | O5: 0 | P5: 0 | Q5: 0 | R5: 0 | S5: 0 | T5: 0 | U5: 0 | V5: 0
A6: C | B6: Proactive | C6: VETNET | D6: Whole trial area | E6: All breakdowns | F6: From initial cull | G6: 40 | H6: 105 | I6: 21 | J6: 12 | K6: 5.85 | L6: =+K6*H6 -> 614.25 | M6: 0 | N6: 0 | O6: 1 | P6: 0 | Q6: 0 | R6: 0 | S6: 0 | T6: 0 | U6: 0 | V6: 0
A7: C | B7: Survey-only | C7: VETNET | D7: Whole trial area | E7: All breakdowns | F7: From initial cull | G7: 120 | H7: 174 | I7: 41 | J7: 19 | K7: 5.85 | L7: =+K7*H7 -> 1017.9 | M7: 0 | N7: 0 | O7: 1 | P7: 0 | Q7: 0 | R7: 0 | S7: 0 | T7: 0 | U7: 0 | V7: 0
A8: D | B8: Proactive | C8: VETNET | D8: Whole trial area | E8: All breakdowns | F8: From initial cull | G8: 47 | H8: 97 | I8: 36 | J8: 13 | K8: 2.72 | L8: =+K8*H8 -> 263.84 | M8: 0 | N8: 0 | O8: 0 | P8: 1 | Q8: 0 | R8: 0 | S8: 0 | T8: 0 | U8: 0 | V8: 0
A9: D | B9: Survey-only | C9: VETNET | D9: Whole trial area | E9: All breakdowns | F9: From initial cull | G9: 51 | H9: 106 | I9: 40 | J9: 11 | K9: 2.72 | L9: =+K9*H9 -> 288.32 | M9: 0 | N9: 0 | O9: 0 | P9: 1 | Q9: 0 | R9: 0 | S9: 0 | T9: 0 | U9: 0 | V9: 0
A10: E | B10: Proactive | C10: VETNET | D10: Whole trial area | E10: All breakdowns | F10: From initial cull | G10: 68 | H10: 116 | I10: 33 | J10: 8 | K10: 5.28 | L10: =+K10*H10 -> 612.48 | M10: 0 | N10: 0 | O10: 0 | P10: 0 | Q10: 1 | R10: 0 | S10: 0 | T10: 0 | U10: 0 | V10: 0
A11: E | B11: Survey-only | C11: VETNET | D11: Whole trial area | E11: All breakdowns | F11: From initial cull | G11: 74 | H11: 97 | I11: 35 | J11: 16 | K11: 5.28 | L11: =+K11*H11 -> 512.16 | M11: 0 | N11: 0 | O11: 0 | P11: 0 | Q11: 1 | R11: 0 | S11: 0 | T11: 0 | U11: 0 | V11: 0
A12: F | B12: Proactive | C12: VETNET | D12: Whole trial area | E12: All breakdowns | F12: From initial cull | G12: 37 | H12: 138 | I12: 18 | J12: 5 | K12: 5.13 | L12: =+K12*H12 -> 707.94 | M12: 0 | N12: 0 | O12: 0 | P12: 0 | Q12: 0 | R12: 1 | S12: 0 | T12: 0 | U12: 0 | V12: 0
A13: F | B13: Survey-only | C13: VETNET | D13: Whole trial area | E13: All breakdowns | F13: From initial cull | G13: 91 | H13: 191 | I13: 55 | J13: 16 | K13: 5.13 | L13: =+K13*H13 -> 979.83 | M13: 0 | N13: 0 | O13: 0 | P13: 0 | Q13: 0 | R13: 1 | S13: 0 | T13: 0 | U13: 0 | V13: 0
A14: G | B14: Proactive | C14: VETNET | D14: Whole trial area | E14: All breakdowns | F14: From initial cull | G14: 99 | H14: 245 | I14: 41 | J14: 12 | K14: 4.82 | L14: =+K14*H14 -> 1180.9 | M14: 0 | N14: 0 | O14: 0 | P14: 0 | Q14: 0 | R14: 0 | S14: 1 | T14: 0 | U14: 0 | V14: 0
A15: G | B15: Survey-only | C15: VETNET | D15: Whole trial area | E15: All breakdowns | F15: From initial cull | G15: 48 | H15: 131 | I15: 34 | J15: 12 | K15: 4.82 | L15: =+K15*H15 -> 631.42 | M15: 0 | N15: 0 | O15: 0 | P15: 0 | Q15: 0 | R15: 0 | S15: 1 | T15: 0 | U15: 0 | V15: 0
A16: H | B16: Proactive | C16: VETNET | D16: Whole trial area | E16: All breakdowns | F16: From initial cull | G16: 44 | H16: 63 | I16: 26 | J16: 13 | K16: 4.72 | L16: =+K16*H16 -> 297.36 | M16: 0 | N16: 0 | O16: 0 | P16: 0 | Q16: 0 | R16: 0 | S16: 0 | T16: 1 | U16: 0 | V16: 0
A17: H | B17: Survey-only | C17: VETNET | D17: Whole trial area | E17: All breakdowns | F17: From initial cull | G17: 47 | H17: 130 | I17: 30 | J17: 10 | K17: 4.72 | L17: =+K17*H17 -> 613.6 | M17: 0 | N17: 0 | O17: 0 | P17: 0 | Q17: 0 | R17: 0 | S17: 0 | T17: 1 | U17: 0 | V17: 0
A18: I | B18: Proactive | C18: VETNET | D18: Whole trial area | E18: All breakdowns | F18: From initial cull | G18: 39 | H18: 100 | I18: 38 | J18: 16 | K18: 2.91 | L18: =+K18*H18 -> 291 | M18: 0 | N18: 0 | O18: 0 | P18: 0 | Q18: 0 | R18: 0 | S18: 0 | T18: 0 | U18: 1 | V18: 0
A19: I | B19: Survey-only | C19: VETNET | D19: Whole trial area | E19: All breakdowns | F19: From initial cull | G19: 46 | H19: 98 | I19: 28 | J19: 8 | K19: 2.91 | L19: =+K19*H19 -> 285.18 | M19: 0 | N19: 0 | O19: 0 | P19: 0 | Q19: 0 | R19: 0 | S19: 0 | T19: 0 | U19: 1 | V19: 0
A20: J | B20: Proactive | C20: VETNET | D20: Whole trial area | E20: All breakdowns | F20: From initial cull | G20: 54 | H20: 114 | I20: 38 | J20: 11 | K20: 2.88 | L20: =+K20*H20 -> 328.32 | M20: 0 | N20: 0 | O20: 0 | P20: 0 | Q20: 0 | R20: 0 | S20: 0 | T20: 0 | U20: 0 | V20: 1
A21: J | B21: Survey-only | C21: VETNET | D21: Whole trial area | E21: All breakdowns | F21: From initial cull | G21: 61 | H21: 123 | I21: 27 | J21: 16 | K21: 2.88 | L21: =+K21*H21 -> 354.24 | M21: 0 | N21: 0 | O21: 0 | P21: 0 | Q21: 0 | R21: 0 | S21: 0 | T21: 0 | U21: 0 | V21: 1

Sheet peturb
A1: Triplet | B1: Treatment | C1: Source of location data | D1: Region | E1: Type of breakdown | F1: Time period | G1: Incidence | H1: Baseline | I1: Hist3yr | J1: Hist1yr | K1: hdyrsrisk | L1: yrs_rsk | M1: A | N1: B | O1: C | P1: D | Q1: E | R1: F | S1: G | T1: H | U1: I | V1: J
A2: A | B2: Proactive | C2: VETNET | D2: Neighbouring area | E2: Confirmed | F2: From initial cull | G2: 24 | H2: 60 | I2: 24 | J2: 8 | K2: 336 | L2: 5.6 | M2: 1 | N2: 0 | O2: 0 | P2: 0 | Q2: 0 | R2: 0 | S2: 0 | T2: 0 | U2: 0 | V2: 0
A3: A | B3: Survey-only | C3: VETNET | D3: Neighbouring area | E3: Confirmed | F3: From initial cull | G3: 20 | H3: 68 | I3: 19 | J3: 8 | K3: 380.8 | L3: 5.6 | M3: 1 | N3: 0 | O3: 0 | P3: 0 | Q3: 0 | R3: 0 | S3: 0 | T3: 0 | U3: 0 | V3: 0
A4: B | B4: Proactive | C4: VETNET | D4: Neighbouring area | E4: Confirmed | F4: From initial cull | G4: 65 | H4: 154 | I4: 16 | J4: 7 | K4: 1036.42 | L4: 6.73 | M4: 0 | N4: 1 | O4: 0 | P4: 0 | Q4: 0 | R4: 0 | S4: 0 | T4: 0 | U4: 0 | V4: 0
A5: B | B5: Survey-only | C5: VETNET | D5: Neighbouring area | E5: Confirmed | F5: From initial cull | G5: 44 | H5: 68 | I5: 15 | J5: 6 | K5: 457.64 | L5: 6.73 | M5: 0 | N5: 1 | O5: 0 | P5: 0 | Q5: 0 | R5: 0 | S5: 0 | T5: 0 | U5: 0 | V5: 0
A6: C | B6: Proactive | C6: VETNET | D6: Neighbouring area | E6: Confirmed | F6: From initial cull | G6: 35 | H6: 117 | I6: 10 | J6: 5 | K6: 684.45 | L6: 5.85 | M6: 0 | N6: 0 | O6: 1 | P6: 0 | Q6: 0 | R6: 0 | S6: 0 | T6: 0 | U6: 0 | V6: 0
A7: C | B7: Survey-only | C7: VETNET | D7: Neighbouring area | E7: Confirmed | F7: From initial cull | G7: 37 | H7: 121 | I7: 14 | J7: 7 | K7: 707.85 | L7: 5.85 | M7: 0 | N7: 0 | O7: 1 | P7: 0 | Q7: 0 | R7: 0 | S7: 0 | T7: 0 | U7: 0 | V7: 0
A8: D | B8: Proactive | C8: VETNET | D8: Neighbouring area | E8: Confirmed | F8: From initial cull | G8: 17 | H8: 47 | I8: 5 | J8: 2 | K8: 127.84 | L8: 2.72 | M8: 0 | N8: 0 | O8: 0 | P8: 1 | Q8: 0 | R8: 0 | S8: 0 | T8: 0 | U8: 0 | V8: 0
A9: D | B9: Survey-only | C9: VETNET | D9: Neighbouring area | E9: Confirmed | F9: From initial cull | G9: 15 | H9: 57 | I9: 19 | J9: 6 | K9: 155.04 | L9: 2.72 | M9: 0 | N9: 0 | O9: 0 | P9: 1 | Q9: 0 | R9: 0 | S9: 0 | T9: 0 | U9: 0 | V9: 0
A10: E | B10: Proactive | C10: VETNET | D10: Neighbouring area | E10: Confirmed | F10: From initial cull | G10: 26 | H10: 94 | I10: 11 | J10: 5 | K10: 496.32 | L10: 5.28 | M10: 0 | N10: 0 | O10: 0 | P10: 0 | Q10: 1 | R10: 0 | S10: 0 | T10: 0 | U10: 0 | V10: 0
A11: E | B11: Survey-only | C11: VETNET | D11: Neighbouring area | E11: Confirmed | F11: From initial cull | G11: 31 | H11: 72 | I11: 16 | J11: 7 | K11: 380.16 | L11: 5.28 | M11: 0 | N11: 0 | O11: 0 | P11: 0 | Q11: 1 | R11: 0 | S11: 0 | T11: 0 | U11: 0 | V11: 0
A12: F | B12: Proactive | C12: VETNET | D12: Neighbouring area | E12: Confirmed | F12: From initial cull | G12: 13 | H12: 61 | I12: 1 | J12: 1 | K12: 312.93 | L12: 5.13 | M12: 0 | N12: 0 | O12: 0 | P12: 0 | Q12: 0 | R12: 1 | S12: 0 | T12: 0 | U12: 0 | V12: 0
A13: F | B13: Survey-only | C13: VETNET | D13: Neighbouring area | E13: Confirmed | F13: From initial cull | G13: 32 | H13: 127 | I13: 20 | J13: 9 | K13: 651.51 | L13: 5.13 | M13: 0 | N13: 0 | O13: 0 | P13: 0 | Q13: 0 | R13: 1 | S13: 0 | T13: 0 | U13: 0 | V13: 0
A14: G | B14: Proactive | C14: VETNET | D14: Neighbouring area | E14: Confirmed | F14: From initial cull | G14: 30 | H14: 154 | I14: 4 | J14: 2 | K14: 742.28 | L14: 4.82 | M14: 0 | N14: 0 | O14: 0 | P14: 0 | Q14: 0 | R14: 0 | S14: 1 | T14: 0 | U14: 0 | V14: 0
A15: G | B15: Survey-only | C15: VETNET | D15: Neighbouring area | E15: Confirmed | F15: From initial cull | G15: 29 | H15: 129 | I15: 15 | J15: 3 | K15: 621.78 | L15: 4.82 | M15: 0 | N15: 0 | O15: 0 | P15: 0 | Q15: 0 | R15: 0 | S15: 1 | T15: 0 | U15: 0 | V15: 0
A16: H | B16: Proactive | C16: VETNET | D16: Neighbouring area | E16: Confirmed | F16: From initial cull | G16: 46 | H16: 73 | I16: 16 | J16: 10 | K16: 344.56 | L16: 4.72 | M16: 0 | N16: 0 | O16: 0 | P16: 0 | Q16: 0 | R16: 0 | S16: 0 | T16: 1 | U16: 0 | V16: 0
A17: H | B17: Survey-only | C17: VETNET | D17: Neighbouring area | E17: Confirmed | F17: From initial cull | G17: 27 | H17: 94 | I17: 14 | J17: 7 | K17: 443.68 | L17: 4.72 | M17: 0 | N17: 0 | O17: 0 | P17: 0 | Q17: 0 | R17: 0 | S17: 0 | T17: 1 | U17: 0 | V17: 0
A18: I | B18: Proactive | C18: VETNET | D18: Neighbouring area | E18: Confirmed | F18: From initial cull | G18: 19 | H18: 70 | I18: 11 | J18: 7 | K18: 203.7 | L18: 2.91 | M18: 0 | N18: 0 | O18: 0 | P18: 0 | Q18: 0 | R18: 0 | S18: 0 | T18: 0 | U18: 1 | V18: 0
A19: I | B19: Survey-only | C19: VETNET | D19: Neighbouring area | E19: Confirmed | F19: From initial cull | G19: 9 | H19: 60 | I19: 14 | J19: 9 | K19: 174.6 | L19: 2.91 | M19: 0 | N19: 0 | O19: 0 | P19: 0 | Q19: 0 | R19: 0 | S19: 0 | T19: 0 | U19: 1 | V19: 0
A20: J | B20: Proactive | C20: VETNET | D20: Neighbouring area | E20: Confirmed | F20: From initial cull | G20: 32 | H20: 123 | I20: 19 | J20: 4 | K20: 354.24 | L20: 2.88 | M20: 0 | N20: 0 | O20: 0 | P20: 0 | Q20: 0 | R20: 0 | S20: 0 | T20: 0 | U20: 0 | V20: 1
A21: J | B21: Survey-only | C21: VETNET | D21: Neighbouring area | E21: Confirmed | F21: From initial cull | G21: 19 | H21: 102 | I21: 5 | J21: 4 | K21: 293.76 | L21: 2.88 | M21: 0 | N21: 0 | O21: 0 | P21: 0 | Q21: 0 | R21: 0 | S21: 0 | T21: 0 | U21: 0 | V21: 1

Sheet Contents
A1: Sheet rbctconf is the data on confirmed breakdowns, baseline herds, treatment groups and baseline herds. This is directly copied from the data files of the 2006 paper. Years at risk was taken from the additional material from the 2006 paper, but was not included in the original data files. Herd years at risk is calculated from years at risk multiplied by baseline herds. The spreadsheet can be directly loaded into R and used in conjunction with the R code provided in supplementary material 4.
A4: Sheet rbct_allbreakdowns gives similar data to sheet rbctconf, but for all breakdowns, not just confirmed breakdowns. This data was taken directly from supplementary material of the 2006 paper
A6: Sheet perturb contains the data from the neighbouring areas so that the so call perturbation effect can be analyzed. Again all data copied or extracted from supplementary material of the 2006 paper
A8: In each data set, there is also a set of dummy variables, A to J which represent the triplets. This is to facilitate the Bayesian analysis
